Cogmind - Beta 13 @@@ ROGUE MODE // 2024.06.11 @ 13:03:43 Player: Kyzrati Result: Destroyed by G-73 Enforcer with Heavy Laser Performance ------------- Evolutions (8) 4000 Regions Visited (14) 2800 Robots Destroyed (201) 1005 Value Destroyed (8902) 8902 Prototype IDs (16) 320 Alien Tech Used (0) 0 Bonus (4667) 4667 TOTAL SCORE: 21694 Bonus ------- Triggered High Security 500 High Alert Combat Kills 3444 Follower Combat Kills 400 Scanned by Researcher 500 Friendly Fire -177 Cogmind --------- Core Integrity 0/1450 Matter 26/300 Energy 99/100 System Corruption 18% Temperature Cool (0) Movement Core (50) Location -2/Research Parts ------- > --- POWER (2) -------- (None) > --- PROPULSION (7) --- (None) > --- UTILITY (10) ----- (None) > --- WEAPON (4) ------- (None) > --- INVENTORY (5) ---- (None) Peak State ------------ > --- POWER ------------ Reinforced Antimatter Reactor Quantum Reactor > --- PROPULSION ------- Biometal Heavy Treads Experimental Biometal Medium Treads Centrium Leg Wheel Wheel Compact Wheel > --- UTILITY ---------- Advanced Heat Sink High-capacity Storage Unit Medium Matter Pod Medium Matter Pod Advanced Sensor Array Advanced Terrain Scanner Improved Kinecellerator Heavy Armor Plating Insulated Plating > --- WEAPON ----------- Tesla Rifle Gamma Rifle Quantum Rifle Linear Accelerator > --- INVENTORY -------- Light Ion Engine Micro Nuclear Core Light Antimatter Reactor Light Quantum Reactor Centrium Leg Small Matter Pod Improved Terrain Scanner Insulated Plating Insulated Plating Hacking Suite Long-range Tractor Beam Field Recycling Unit Hypervelocity Mass Driver Hellfire Missile Launcher Hellfire Missile Launcher Hellfire Missile Launcher Advanced Micro-nuke Launcher Improved Remote Datajack [Rating: 128] Favorites ----------- Power Ion Engine Engine Ion Engine Power Core Fission Core Reactor Reinforced Antimatter Reactor Propulsion Light Treads Treads Light Treads Leg Arachnoskeleton Wheel Wheel Utility Melee Analysis Suite Device Advanced Heat Sink Storage Medium Matter Pod Processor Melee Analysis Suite Protection Improved Light Armor Plating Weapon Assault Rifle Energy Gun Quantum Rifle Energy Cannon Phase Cannon Ballistic Gun Assault Rifle Ballistic Cannon Linear Accelerator Launcher Hellfire Missile Launcher Special Weapon Remote Datajack Impact Weapon Heavy Flail Slashing Weapon Axe Special Melee Weapon Datajack Build | -11 -10 -10 -10 -8 -6 -6 -6 -5 -5 -5 -4 -3 -3 -2 ------- Run | Yrd Mat Min Sub Rec Fac Low Low Fac Upp Upp Fac Res Arm Res Slots Evolved 16 | . . . . . 8 . . 2 . . 2 2 . 2 Power 1 | . . . . . 1 . . . . . . . . . Propulsion 5 | . . . . . 2 . . . . . . 1 . 2 Utility 8 | . . . . . 3 . . 2 . . 2 1 . . Weapon 2 | . . . . . 2 . . . . . . . . . Parts Attached 253 | 7 2 1 7 16 14 1 4 12 2 2 8 56 25 96 Power 25 | 1 . . . . 2 . . 3 . 1 . 4 3 11 Engine 6 | 1 . . . . 1 . . 1 . . . 1 . 2 Core 5 | . . . . . 1 . . 2 . 1 . . . 1 Reactor 14 | . . . . . . . . . . . . 3 3 8 Propulsion 48 | 2 . . 2 1 3 . . 2 . . 1 12 7 18 Treads 14 | 2 . . 1 1 2 . . . . . . 2 2 4 Leg 8 | . . . . . 1 . . 2 . . 1 1 . 3 Wheel 26 | . . . 1 . . . . . . . . 9 5 11 Hover . | . . . . . . . . . . . . . . . Flight . | . . . . . . . . . . . . . . . Utility 91 | 2 . . . 2 5 . . 3 . 1 4 27 10 37 Device 64 | 1 . . . . 2 . . 2 . 1 3 23 7 25 Storage 6 | 1 . . . 1 . . . . . . . 2 1 1 Processor 8 | . . . . . 2 . . 1 . . 1 1 1 2 Hackware . | . . . . . . . . . . . . . . . Protection 13 | . . . . 1 1 . . . . . . 1 1 9 Artifact . | . . . . . . . . . . . . . . . Weapon 89 | 2 2 1 5 13 4 1 4 4 2 . 3 13 5 30 Energy Gun 17 | . . . . 4 . . 1 1 . . 2 2 2 5 Energy Cannon 3 | . . . . . . . . 1 . . . . . 2 Ballistic Gun 15 | 2 1 . 3 5 . . . . . . . . . 4 Ballistic Cannon 11 | . . . . . . . 1 1 . . . 5 1 3 Launcher 31 | . 1 1 2 . 1 . 1 1 1 . 1 5 2 15 Special Weapon 3 | . . . . 2 . . . . . . . . . 1 Impact Weapon 3 | . . . . . 1 . . . 1 . . 1 . . Slashing Weapon 5 | . . . . 1 2 1 1 . . . . . . . Piercing Weapon . | . . . . . . . . . . . . . . . Special Melee Weapon 1 | . . . . 1 . . . . . . . . . . Unidentified Prototypes 6 | . . . . . . . 1 . . . . 2 . 3 Corrupted Parts 3 | . . . . . . . . . . . . 2 1 . System Corruption 21 | . . . . . . . . . . . . 17 4 . Parts Lost 99 | . . . . 1 5 . 1 2 . 1 . 28 11 50 Power 13 | . . . . . 1 . . . . . . 4 3 5 Propulsion 30 | . . . . . 2 . . . . . . 8 4 16 Utility 30 | . . . . . 2 . . 1 . 1 . 11 2 13 Weapon 26 | . . . . 1 . . 1 1 . . . 5 2 16 Highest Loss Streak 20 | . . . . 1 4 . 1 2 . 1 . 9 7 20 To Critical Strikes . | . . . . . . . . . . . . . . . Average Slot Usage (%) 85 | . 100 100 100 98 72 76 75 79 84 84 82 73 73 82 Engine 5 | . 14 14 14 14 7 5 5 4 5 4 . . . . Core 1 | . . . . . . 5 5 5 5 5 9 2 . . Reactor 2 | . . . . . . . . . . . . 4 6 6 Treads 11 | . 28 28 28 28 6 5 5 2 . . . 3 5 5 Leg 4 | . . . . . 4 5 5 9 15 15 14 6 . 4 Wheel 4 | . . . . . . . . . . . . 5 6 13 Device 13 | . 14 14 14 7 4 5 5 9 10 12 18 17 15 18 Storage 9 | . 14 14 14 14 5 5 5 5 5 5 4 3 13 10 Processor 6 | . . . . . 10 11 11 15 15 15 18 12 8 2 Protection 3 | . . . . 6 4 5 5 5 5 2 . . 1 4 Energy Gun 3 | . . . . . 11 7 5 4 . . 2 . 5 5 Ballistic Gun 7 | . 27 25 21 20 . . . . . . . . . 2 Ballistic Cannon 3 | . . . . . . . 4 4 5 5 1 10 4 3 Launcher 1 | . . 2 6 . . . . . . . . 1 1 1 Impact Weapon 1 | . . . . . 4 5 5 5 4 5 4 . . . Slashing Weapon 1 | . . . . . 4 8 5 5 5 5 4 1 . . Naked Turns 33 | . . . . . . . . . . . . . . 33 Heaviest Build 148 | 15 16 16 17 37 47 47 53 70 76 74 81 100 128 148 Greatest Support 115 | 40 40 40 40 40 50 50 50 77 77 77 102 107 56 115 Greatest Overweight (x) 12 | 1 . . . . . . 1 1 . . 1 6 12 11 Average Overweight (x) 1 | . . . . . . . 1 . . . . 1 5 2 Largest Inventory Capacity 20 | 8 8 8 8 15 15 15 15 15 15 15 15 15 20 20 Average Capacity 14 | 7 8 8 8 13 15 15 15 15 15 15 15 10 18 19 Most Carried 20 | 3 8 8 8 15 15 14 14 15 15 15 15 15 10 20 Average Carried 11 | 1 6 8 7 12 10 11 13 13 15 14 14 9 7 13 Final Capacity 20 | 8 8 8 8 15 15 15 15 15 15 15 15 5 20 5 Final Carried 15 | 3 8 8 8 15 10 14 13 15 15 15 15 5 9 . Class Distribution -------------------- 26% | Mutant 19% | Scavenger-Skirmisher 14% | Scavenger-Gladiator 11% | Scavenger-Tank 9% | Scavenger-Mutant 7% | Gladiator 3% | Commander-Mutant 3% | Commander-Gladiator 3% | Tank Dominant Class ---------------- Mutant | -10/Materials Mutant | -10/Mines Mutant | -10/Subcaves Mutant | -8/Recycling Commander-Gladiator | -6/Factory Scavenger-Gladiator | -6/Lower Caves Scavenger-Gladiator | -6/Lower Caves Scavenger-Gladiator | -5/Factory Scavenger-Gladiator | -5/Upper Caves Gladiator | -5/Upper Caves Gladiator | -4/Factory Scavenger-Tank | -3/Research Scavenger-Tank | -3/Armory Scavenger-Skirmisher | -2/Research Resources | -11 -10 -10 -10 -8 -6 -6 -6 -5 -5 -5 -4 -3 -3 -2 ----------- Run | Yrd Mat Min Sub Rec Fac Low Low Fac Upp Upp Fac Res Arm Res Matter Collected 7045 | 288 422 . 230 442 165 10 50 159 67 33 213 2038 575 2353 Remotely 3292 | . . . . . . . . . . . . 1351 546 1395 Salvage Created 7570 | 68 412 . 68 888 160 . 67 280 385 206 335 1736 476 2489 Parts 285 | 5 31 . 8 30 11 . 7 9 8 3 14 66 22 71 Haulers Intercepted 2 | . 1 . . . . . . . . . . 1 . . Recyclers Shooed 14 | 1 1 . . 5 . . . . . . 2 3 . 2 Parts Field Recycled 8 | . . . . . . . . . . . . . . 8 Retrieved Matter 122 | . . . . . . . . . . . . . . 122 Parts Self-Destructed 7 | . . . . . . . 6 . . 1 . . . . Prevented 12 | . . . . . . . 2 . 8 2 . . . . Kills | -11 -10 -10 -10 -8 -6 -6 -6 -5 -5 -5 -4 -3 -3 -2 ------- Run | Yrd Mat Min Sub Rec Fac Low Low Fac Upp Upp Fac Res Arm Res Combat Hostiles Destroyed 127 | . 3 . 2 6 4 . 4 4 4 3 3 26 13 55 Melee 3 | . . . . . 1 . . 1 . 1 . . . . Guns 13 | . . . 1 6 . . . . . . . . 3 3 Cannons 25 | . . . . . . . . . . 1 . 13 6 5 AOE 77 | . 3 . 1 . 3 . 4 2 2 . 2 11 4 45 Classes Destroyed 25 | 2 4 . 2 4 1 . . . 1 2 . 3 2 4 Worker 19 | . 5 . . . . . . . . . 4 6 . 4 Builder 15 | . 2 . . . 1 . . . . . 1 8 . 3 Tunneler 7 | 1 1 . . . 1 . . . . . 1 . . 3 Hauler 2 | . 1 . . . . . . . . . . 1 . . Recycler 25 | 1 2 . . 8 . . . 1 . . 1 5 . 7 Minesweeper 1 | . . . . . . . . . . 1 . . . . Mechanic 1 | . . . . . . . . . . . . . . 1 Operator 1 | . . . . . . . . . . . . . . 1 Watcher 1 | . . . . . . . . . . . . . . 1 Swarmer 19 | . 3 . . . 3 . 4 . . . . . . 9 Cutter 2 | . . . . . . . . . . . . . 2 . Saboteur 2 | . . . . . . . . . . . . 1 . 1 Grunt 34 | . . . . 1 . . . 4 4 . . 10 . 15 Brawler 3 | . . . . . . . . . . . . 1 . 2 Duelist 5 | . . . . . . . . . . . . 2 . 3 Protector 5 | . . . . . 1 . . . . . . 1 . 3 Sentry 19 | . . . . 3 1 . . . . . 1 6 3 5 Demolisher 1 | . . . . 1 . . . . . . . . . . Specialist 2 | . . . . . . . . . . . . . 2 . Hunter 12 | . . . . . . . . . . 2 2 . . 8 Programmer 22 | . . . . 1 . . . . . 1 . 5 6 9 Investigator 1 | . . . . . . . . . . . . . . 1 Artisan 1 | . . . 1 . . . . . . . . . . . Subdweller 2 | . . . 2 . . . . . . . . . . . Packrat 1 | . . . . . . . . . 1 . . . . . Samaritan 1 | . . . . . . . . . 1 . . . . . Best Kill Streak 19 | 2 5 . 2 8 4 . 4 4 4 3 9 12 3 19 Combat Bots Only 17 | . 3 . 2 3 3 . 4 4 4 2 2 5 3 17 Max Kills in Single Turn 6 | 1 3 . 1 1 5 . 3 2 1 1 2 5 1 6 Gunslinging . | . . . . . . . . . . . . . . . Exploded 5 | . 2 . 1 . 3 . 3 2 1 . 1 2 1 5 Melee 1 | . . . . . 1 . . 1 . 1 . . . . Uniques/NPCs Destroyed . | . . . . . . . . . . . . . . . Combat | -11 -10 -10 -10 -8 -6 -6 -6 -5 -5 -5 -4 -3 -3 -2 -------- Run | Yrd Mat Min Sub Rec Fac Low Low Fac Upp Upp Fac Res Arm Res Hostile Shots Fired 1084 | . 8 . 10 28 46 . 5 17 9 31 46 216 163 505 Missed 340 | . 4 . 3 8 15 . 2 7 3 6 15 68 74 135 Damage Taken 15948 | . 38 . 332 436 302 . 48 322 112 336 273 3736 1906 8107 Core 2157 | . 7 . 103 50 26 . . . . 29 53 220 217 1452 Absorbed by Shields 2325 | . . . . 10 36 . . 8 . . 176 163 . 1932 Reduced by Siege Mode 150 | . . . . . . . . . . . . . . 150 Redirected to Shielding 77 | . . . . . . . . . . . . . . 77 Ignored by Resistances 381 | . . . . . . . . . . 71 148 82 . 80 Core Remaining (%) 81 | 100 . . . 36 . . 96 . . 97 95 . 66 . Volleys Fired 428 | 3 37 1 22 56 1 . 2 7 7 4 10 117 43 118 Largest 4 | 2 2 1 2 2 1 . 1 2 1 1 2 3 3 4 Hottest 319 | 40 40 30 40 53 30 . 30 125 85 85 103 185 254 319 Shots Fired 640 | 6 70 1 27 85 1 . 2 9 7 4 11 181 66 170 Gun 257 | 6 66 . 12 58 . . . . . . 1 1 28 85 Cannon 243 | . . . . . . . . 6 2 4 . 155 31 45 Launcher 114 | . 4 1 15 1 1 . 2 3 5 . 10 25 7 40 Special 26 | . . . . 26 . . . . . . . . . . Kinetic 407 | 6 66 . 12 58 . . . 4 1 . 10 155 31 64 Thermal 71 | . . . . . . . . 2 1 4 1 1 28 34 Explosive 87 | . 4 1 15 1 1 . 2 3 . . . 13 7 40 Electromagnetic 49 | . . . . . . . . . 5 . . 12 . 32 Robot Hit Streak 25 | 3 8 . 3 25 . . . 3 . 4 3 25 16 17 Robot Miss Streak 5 | 1 3 . 1 4 1 . . . . 2 1 5 2 2 Penetration Max 1 | . . . . . . . . . . . . 1 . 1 Secondary Targets . | . . . . . . . . . . . . . . . Shots Hit Robots 449 | 4 40 . 6 86 6 . . 6 3 7 17 112 43 119 Core Hits 375 | 3 16 . 7 20 7 . 6 7 5 2 19 76 23 184 Critical Kills 10 | . . . . . . . . . . . . 4 2 4 Critical Parts Destroyed 10 | . . . . . . . . . . 1 1 1 . 7 Critical Strikes 34 | . . . . . . . . . . 1 1 18 2 12 Destroy 18 | . . . . . . . . . . . . 5 2 11 Blast 13 | . . . . . . . . . . . . 12 . 1 Smash 2 | . . . . . . . . . . 1 1 . . . Sever 1 | . . . . . . . . . . . . 1 . . Melee Attacks 72 | . . . . 19 6 . . 11 6 8 15 7 . . Impact 30 | . . . . . 1 . . 6 3 6 12 2 . . Slashing 23 | . . . . . 5 . . 5 3 2 3 5 . . Piercing . | . . . . . . . . . . . . . . . Sneak Attacks 27 | . . . . 18 1 . . . 3 1 2 2 . . Combat Hostiles 16 | . . . . 16 . . . . . . . . . . Follow-up Attacks 6 | . . . . . 1 . . 1 1 2 1 . . . Damage Inflicted 31918 | 49 820 . 242 819 443 . 206 620 754 512 1316 7324 2242 16571 Guns 3735 | 49 512 . 76 815 . . . . . . . 16 527 1740 Cannons 5471 | . . . . . . . . 111 . 75 . 3558 986 741 Explosions 20666 | . 308 . 163 . 212 . 206 366 416 . 754 3422 729 14090 Melee 2039 | . . . . . 231 . . 143 338 437 562 328 . . Ramming 7 | . . . 3 4 . . . . . . . . . . Kinetic 7866 | 49 512 . 76 815 . . . 81 . . 754 3558 986 1035 Thermal 1447 | . . . . . . . . 30 . 75 . 16 527 799 Explosive 18834 | . 308 . 163 . 212 . 206 366 . . . 2760 729 14090 Electromagnetic 1725 | . . . . . . . . . 416 . . 662 . 647 Impact 1378 | . . . . . 24 . . 108 238 394 523 91 . . Slashing 661 | . . . . . 207 . . 35 100 43 39 237 . . Piercing . | . . . . . . . . . . . . . . . Highest Corruption 51 | . . . . . . . . . . 2 . 43 51 18 Average Corruption 22 | . . . . . . . . . . 1 . 31 49 10 Corruption Purged . | . . . . . . . . . . . . . . . Corruption Blocked . | . . . . . . . . . . . . . . . Effects 141 | . . . . . . . . . . 3 . 30 53 55 Message Errors 36 | . . . . . . . . . . . . 6 13 17 Matter Fused 27 | . . . . . . . . . . 2 . 8 9 8 Heat Flow Errors 15 | . . . . . . . . . . . . 4 5 6 Energy Discharges 9 | . . . . . . . . . . . . 2 3 4 Parts Rejected 10 | . . . . . . . . . . . . 3 1 6 Data Loss (minor) 17 | . . . . . . . . . . 1 . . 7 9 Data Loss (major) 2 | . . . . . . . . . . . . . 1 1 Misfires 5 | . . . . . . . . . . . . 1 3 1 Alerts 2 | . . . . . . . . . . . . 1 . 1 Misdirections 1 | . . . . . . . . . . . . 1 . . Weapon Failures 17 | . . . . . . . . . . . . 4 11 2 Overload Shots . | . . . . . . . . . . . . . . . Overflow Damage 1832 | . 18 . . . 26 . . 6 266 304 188 311 97 616 Projectiles 147 | . . . . . . . . . . . . 89 30 28 Explosions 903 | . 18 . . . . . . . . . 8 222 67 588 Melee 782 | . . . . . 26 . . 6 266 304 180 . . . Knockbacks 37 | . . . . . . . . 2 . 2 1 19 7 6 Impact 4 | . . . . . . . . 1 . 2 1 . . . Kinetic 32 | . . . . . . . . 1 . . . 18 7 6 Secondary 1 | . . . . . . . . . . . . 1 . . Self-Inflicted Damage 2228 | . 6 . 146 19 22 . 8 48 . . 21 455 172 1331 Shots 40 | . 1 . 6 1 1 . 1 1 . . 1 10 2 16 Rammed 3 | . . . 1 1 . . . . . . . . . 1 Targets Rammed 3 | . . . 1 1 . . . . . . . . . 1 Kicked . | . . . . . . . . . . . . . . . Crushed . | . . . . . . . . . . . . . . . Highest Temperature 371 | . . . . 9 2 . . . 2 . . 315 170 371 Average Temperature 82 | . . . . 4 2 . . . 2 . . 95 40 86 Received Heat Transfer 1521 | . . . . 79 92 . . 86 57 . 8 586 108 505 Effects 7 | . . . . . . . . . . . . 4 . 3 Shutdowns 1 | . . . . . . . . . . . . . . 1 Energy Bleed 2 | . . . . . . . . . . . . 1 . 1 Interference 3 | . . . . . . . . . . . . 3 . . Matter Decay 1 | . . . . . . . . . . . . . . 1 Siege Activations 4 | . . . . . . . . . . . . . . 4 Total Turns 93 | . . . . . . . . . . . . . . 93 Longest Duration 50 | . . . . . . . . . . . . . . 50 Robots Corrupted 6 | . . . . . . . . . 2 . . 2 . 2 Combat Hostiles 6 | . . . . . . . . . 2 . . 2 . 2 Parts Fried 23 | . . . . . . . . . 1 7 4 4 . 7 Impact Corruptions 21 | . . . . . . . . 1 6 7 7 . . . Robots Melted . | . . . . . . . . . . . . . . . Combat Hostiles . | . . . . . . . . . . . . . . . Parts Melted 6 | . . . . . . . . . . 3 . . . 3 Heat Transferred 1739 | . . . . . . . . 37 . 74 . 37 592 999 Parts Sabotaged 3 | . . . . . . . . . . . . . . 3 Parts Stolen . | . . . . . . . . . . . . . . . Parts Stripped . | . . . . . . . . . . . . . . . Power Chain Reactions . | . . . . . . . . . . . . . . . Alert | -11 -10 -10 -10 -8 -6 -6 -6 -5 -5 -5 -4 -3 -3 -2 ------- Run | Yrd Mat Min Sub Rec Fac Low Low Fac Upp Upp Fac Res Arm Res Peak Influence 2207 | 10 150 22 . 160 388 . . 487 . . 566 931 784 2207 Initial 471 | . 6 17 . 50 48 . . 151 . . 184 297 471 411 Average 546 | 2 55 17 . 111 208 . . 376 . . 345 655 568 1003 Maximum Alert Level 5 | . . . . . 1 . . 2 . . 2 3 3 5 Low Security (%) 30 | 100 100 100 . 100 34 . . 9 . . 29 . . . Level 1 11 | . . . . . 65 . . 26 . . 33 8 . 8 Level 2 34 | . . . . . . . . 63 . . 36 51 92 35 Level 3 9 | . . . . . . . . . . . . 39 7 10 Level 4 8 | . . . . . . . . . . . . . . 28 Level 5 . | . . . . . . . . . . . . . . 1 High Security 4 | . . . . . . . . . . . . . . 15 Max Security . | . . . . . . . . . . . . . . . Squads Dispatched 35 | . . . . . 3 . . 3 . . 3 5 3 18 Investigation 2 | . . . . . . . . 1 . . 1 . . . Extermination 8 | . . . . . . . . 1 . . . 2 1 4 Reinforcement 12 | . . . . . 3 . . . . . 2 1 2 4 Assault 13 | . . . . . . . . 1 . . . 2 . 10 Garrison . | . . . . . . . . . . . . . . . Intercept . | . . . . . . . . . . . . . . . Searches Triggered . | . . . . . . . . . . . . . . . Construction Impeded 5 | . . . . . 1 . . . . . 1 1 . 2 Haulers Reinforced 1 | . . . . . 1 . . . . . . . . . Active Scanning Responses . | . . . . . . . . . . . . . . . Cargo Convoy Interrupts . | . . . . . . . . . . . . . . . Stealth | -11 -10 -10 -10 -8 -6 -6 -6 -5 -5 -5 -4 -3 -3 -2 --------- Run | Yrd Mat Min Sub Rec Fac Low Low Fac Upp Upp Fac Res Arm Res Distress Signals 10 | . . . . 2 . . . . . . . 3 2 3 Communications Jammed . | . . . . . . . . . . . . . . . Distress Signals . | . . . . . . . . . . . . . . . Times Spotted 240 | . 11 . 5 14 13 . 4 5 4 3 6 46 16 113 Peak Tracking Total 28 | . 4 . 4 5 5 . 4 4 4 2 3 8 5 28 Tactical Retreats 17 | . . . 1 2 . . . . . . . 6 2 6 Traps | -11 -10 -10 -10 -8 -6 -6 -6 -5 -5 -5 -4 -3 -3 -2 ------- Run | Yrd Mat Min Sub Rec Fac Low Low Fac Upp Upp Fac Res Arm Res Traps Triggered 8 | . . . 1 . . . . 1 . . 1 . . 5 Indirectly . | . . . . . . . . . . . . . . . Trap Hack Attempts . | . . . . . . . . . . . . . . . Triggered . | . . . . . . . . . . . . . . . Disarmed . | . . . . . . . . . . . . . . . Reprogrammed . | . . . . . . . . . . . . . . . Reused 1 | . . . . . . . . . . . . 1 . . Traps Extracted . | . . . . . . . . . . . . . . . Installed 1 | . . . . . . . . . . . . 1 . . Triggered 4 | . . . . . . . 1 . . 2 . 1 . . Most Traps Carried 1 | . . . . . . . . . . 1 1 1 . . Machines | -11 -10 -10 -10 -8 -6 -6 -6 -5 -5 -5 -4 -3 -3 -2 ---------- Run | Yrd Mat Min Sub Rec Fac Low Low Fac Upp Upp Fac Res Arm Res Machines Disabled 32 | . 1 . 3 3 1 . . 3 . . 8 1 5 7 Max in Single Turn 8 | . 1 . 2 3 . . . 1 . . 8 1 2 1 Garrison Access 2 | . . . . . . . . 1 . . . . . 1 Machines Repaired . | . . . . . . . . . . . . . . . Machines Dismantled . | . . . . . . . . . . . . . . . Machines Sabotaged . | . . . . . . . . . . . . . . . Overloaded Fab Kills . | . . . . . . . . . . . . . . . Hacking | -11 -10 -10 -10 -8 -6 -6 -6 -5 -5 -5 -4 -3 -3 -2 --------- Run | Yrd Mat Min Sub Rec Fac Low Low Fac Upp Upp Fac Res Arm Res Machines Accessed 12 | . 1 . 1 . . . . 1 . . 2 . 3 4 Terminals 6 | . 1 . . . . . . . . . 2 . 2 1 Fabricators . | . . . . . . . . . . . . . . . Repair Stations . | . . . . . . . . . . . . . . . Recycling Units 2 | . . . . . . . . . . . . . 1 1 Scanalyzers . | . . . . . . . . . . . . . . . Garrison Access 3 | . . . . . . . . 1 . . . . . 2 Total Hacks 19 | . 1 . 1 . . . . 3 . . 5 . 3 6 Successful 4 | . . . 1 . . . . . . . . . . 3 Failed 15 | . 1 . . . . . . 3 . . 5 . 3 3 Catastrophic 4 | . . . . . . . . 1 . . 1 . 2 . Database Lockouts . | . . . . . . . . . . . . . . . Manual 8 | . 1 . . . . . . . . . 2 . 2 3 Terminals 10 | . 1 . . . . . . . . . 5 . 2 2 Fabricators . | . . . . . . . . . . . . . . . Repair Stations . | . . . . . . . . . . . . . . . Recycling Units 2 | . . . . . . . . . . . . . 1 1 Scanalyzers . | . . . . . . . . . . . . . . . Garrison Access 6 | . . . . . . . . 3 . . . . . 3 Terminal Hacks 1 | . . . 1 . . . . . . . . . . . Derelict Proto ID Bank 1 | . . . 1 . . . . . . . . . . . Fabricator Hacks . | . . . . . . . . . . . . . . . Repair Station Hacks . | . . . . . . . . . . . . . . . Recycling Unit Hacks 1 | . . . . . . . . . . . . . . 1 Report Inventory 1 | . . . . . . . . . . . . . . 1 Scanalyzer . | . . . . . . . . . . . . . . . Garrison Access Hacks 2 | . . . . . . . . . . . . . . 2 Unlock Access 1 | . . . . . . . . . . . . . . 1 Seal Access 1 | . . . . . . . . . . . . . . 1 Unauthorized Hacks . | . . . . . . . . . . . . . . . Terminals . | . . . . . . . . . . . . . . . Fabricators . | . . . . . . . . . . . . . . . Repair Stations . | . . . . . . . . . . . . . . . Recycling Units . | . . . . . . . . . . . . . . . Scanalyzers . | . . . . . . . . . . . . . . . Garrison Access . | . . . . . . . . . . . . . . . Data Cores Recovered . | . . . . . . . . . . . . . . . Used . | . . . . . . . . . . . . . . . Hacking Detections 8 | . . . . . . . . 1 . . 2 . 3 2 Full Trace Events 2 | . . . . . . . . 1 . . 1 . . . Feedback Events . | . . . . . . . . . . . . . . . Feedback Blocked . | . . . . . . . . . . . . . . . Robot Schematics Acquired . | . . . . . . . . . . . . . . . Robots Built . | . . . . . . . . . . . . . . . Authchips . | . . . . . . . . . . . . . . . Time . | . . . . . . . . . . . . . . . Total Robot Build Rating . | . . . . . . . . . . . . . . . Part Schematics Acquired . | . . . . . . . . . . . . . . . Parts Built . | . . . . . . . . . . . . . . . Authchips . | . . . . . . . . . . . . . . . Time . | . . . . . . . . . . . . . . . Total Part Build Rating . | . . . . . . . . . . . . . . . Parts Repaired . | . . . . . . . . . . . . . . . Time . | . . . . . . . . . . . . . . . Parts Recycled . | . . . . . . . . . . . . . . . Recycled Matter . | . . . . . . . . . . . . . . . Retrieved Matter . | . . . . . . . . . . . . . . . Retrieved Components . | . . . . . . . . . . . . . . . Parts Scanalyzed . | . . . . . . . . . . . . . . . Part Schematics Acquired . | . . . . . . . . . . . . . . . Parts Damaged . | . . . . . . . . . . . . . . . Bothacking | -11 -10 -10 -10 -8 -6 -6 -6 -5 -5 -5 -4 -3 -3 -2 ------------ Run | Yrd Mat Min Sub Rec Fac Low Low Fac Upp Upp Fac Res Arm Res Used RIF Installer . | . . . . . . . . . . . . . . . Robots Hacked . | . . . . . . . . . . . . . . . Non-combat . | . . . . . . . . . . . . . . . Combat . | . . . . . . . . . . . . . . . Robot Hacks Applied . | . . . . . . . . . . . . . . . Relay Couplers Released 2 | . . . . . . . . 2 . . . . . . Machine Destruction 2 | . . . . . . . . 2 . . . . . . Fabnet Peak Effective % . | . . . . . . . . . . . . . . . Robots Rewired 18 | . . . . 18 . . . . . . . . . . Allies Hacked . | . . . . . . . . . . . . . . . Hacks Repelled . | . . . . . . . . . . . . . . . Allies | -11 -10 -10 -10 -8 -6 -6 -6 -5 -5 -5 -4 -3 -3 -2 -------- Run | Yrd Mat Min Sub Rec Fac Low Low Fac Upp Upp Fac Res Arm Res Total Allies 18 | . . . . 18 . . . . . . . . . . Largest Group 9 | . . . . 9 9 1 . . . . . . . . Highest-Rated Group 175 | . . . . 175 143 10 . . . . . . . . Highest-Rated Ally 34 | . . . . 34 34 10 . . . . . . . . Total Orders 15 | . . . . . 1 1 . . . . . 13 . . STAY 5 | . . . . . 1 1 . . . . . 3 . . FOLLOW 1 | . . . . . . . . . . . . 1 . . EXPLORE 7 | . . . . . . . . . . . . 7 . . RETURN 2 | . . . . . . . . . . . . 2 . . Ally Attacks 54 | . . . . 18 36 . . . . . . . . . Total Damage 1807 | . . . . 843 964 . . . . . . . . . Kills 19 | . . . . 9 10 . . . . . . . . . Allies Corrupted 1 | . . . . 1 . . . . . . . . . . Allies Melted . | . . . . . . . . . . . . . . . Intel | -11 -10 -10 -10 -8 -6 -6 -6 -5 -5 -5 -4 -3 -3 -2 ------- Run | Yrd Mat Min Sub Rec Fac Low Low Fac Upp Upp Fac Res Arm Res Robot Analysis Total . | . . . . . . . . . . . . . . . Derelict Logs Recovered 3 | . . . 1 . . . 1 . . 1 . . . . Drone Launches 7 | . . . . . . . . . . . . 7 . . Drone Recoveries 4 | . . . . . . . . . . . . 4 . . Exploration | -11 -10 -10 -10 -8 -6 -6 -6 -5 -5 -5 -4 -3 -3 -2 ------------- Run | Yrd Mat Min Sub Rec Fac Low Low Fac Upp Upp Fac Res Arm Res Turns Passed 8539 | 91 540 98 996 975 393 259 64 405 316 306 368 905 740 2083 Spaces Moved 4832 | 44 253 50 562 458 323 282 31 231 282 261 249 388 285 1133 Core 43 | 3 . . . . . . . . . . . . . 40 Treads 1496 | 41 253 50 562 458 9 . . . . . . . 1 122 Legs 1786 | . . . . . 314 282 31 231 282 261 249 136 . . Wheels 1507 | . . . . . . . . . . . . 252 284 971 Hover . | . . . . . . . . . . . . . . . Flight . | . . . . . . . . . . . . . . . Fastest Speed 50 | 50 160 160 160 160 90 90 180 100 100 100 100 95 110 50 Average Speed 131 | 154 160 160 160 160 91 90 180 144 100 100 115 118 166 130 Slowest Speed 320 | 160 160 160 160 160 160 90 180 185 100 100 183 190 320 245 Overloaded Moves . | . . . . . . . . . . . . . . . Propulsion Burnouts . | . . . . . . . . . . . . . . . Robots Hopped . | . . . . . . . . . . . . . . . Cave-ins Triggered . | . . . . . . . . . . . . . . . Exploration Rate (%) 26 | 4 54 6 15 69 8 48 5 5 57 34 14 16 21 40 Regions Visited 14 Branch Regions 8 Pre-discovered Areas 1 | . . . . . . . 1 . . . . . . . Known Exits Taken 1 | . . . 1 . . . . . . . . . . . Unknown Exits Taken 13 | 1 1 1 . 1 1 1 1 1 1 1 1 1 1 . Scrap Searched 2 | . . . . . . 1 . . . 1 . . . . Spaces Dug 214 | . 4 5 33 32 . . 12 12 3 . 2 34 2 75 Terrain Destroyed 954 | . 29 5 79 34 6 . 12 46 3 2 54 156 114 414 Melee 6 | . . . . . . . . 2 1 . 2 1 . . Projectile 87 | . . . . 2 . . . 1 2 2 . 51 5 24 AOE 861 | . 29 5 79 32 6 . 12 43 . . 52 104 109 390 Terrain Rammed . | . . . . . . . . . . . . . . . Walls Destroyed . | . . . . . . . . . . . . . . . Machines Disabled . | . . . . . . . . . . . . . . . Actions | -11 -10 -10 -10 -8 -6 -6 -6 -5 -5 -5 -4 -3 -3 -2 --------- Run | Yrd Mat Min Sub Rec Fac Low Low Fac Upp Upp Fac Res Arm Res Total 6280 | 58 320 67 630 620 407 286 36 282 302 293 301 638 480 1560 Wait 458 | 2 16 16 30 45 60 . . 6 9 17 4 41 113 99 Move 4819 | 43 252 49 562 457 322 281 30 230 281 260 248 387 284 1133 Hop . | . . . . . . . . . . . . . . . Pick Up 77 | 3 9 . 2 11 4 4 . 8 . 2 5 10 4 15 Fast Attach 101 | 7 . . 3 3 5 . . 6 . . 2 26 13 36 Attach 80 | . . . . . 7 . 1 2 . 1 2 13 10 44 Detach 55 | . . . . 1 . . . 2 . . 2 8 11 31 Swap 72 | . 2 1 4 13 2 1 3 4 2 1 4 17 2 16 Drop 56 | . 4 . 7 12 1 . . 9 . 2 7 11 . 3 Fire 428 | 3 37 1 22 56 1 . 2 7 7 4 10 117 43 118 Melee 60 | . . . . 19 5 . . 8 3 6 12 7 . . Ram 1 | . . . . . . . . . . . . . . 1 Kick . | . . . . . . . . . . . . . . . Crush 1 | . . . . 1 . . . . . . . . . . Escape Stasis 69 | . . . . . . . . . . . 5 . . 64 Rewire 2 | . . . . 2 . . . . . . . . . . Trap 1 | . . . . . . . . . . . . 1 . . Miscellaneous . | . . . . . . . . . . . . . . . Route ------- -11/Scrapyard -10/Materials -10/Mines -10/Subcaves -8/Recycling -6/Factory -6/Lower Caves -6/Lower Caves -5/Factory -5/Upper Caves -5/Upper Caves -4/Factory -3/Research -3/Armory -2/Research (discovered 2 exits: [*Acc] / Gar) History --------- Turn | Location | Event 9 | -11/Scrapyard | Discovered new exit (range 14) 92 | -11/Scrapyard | Entered Materials 148 | -10/Materials | Discovered new exit (range 15) 303 | -10/Materials | Build established: Mutant 632 | -10/Materials | Entered Mines 633 | -10/Mines | Assembled infested the area 690 | -10/Mines | Met a Derelict bent on vengeance 719 | -10/Mines | Discovered new exit (range 8) 730 | -10/Mines | Entered Subcaves 785 | -10/Subcaves | Identified exit to Recycling 1049 | -10/Subcaves | Visited 4L-MR0's lab 1346 | -10/Subcaves | Ambushed by Subdweller buried in earth 1346 | -10/Subcaves | Ambushed by Subdweller buried in earth 1517 | -10/Subcaves | Found Arachnoskeleton 1726 | -10/Subcaves | Entered Recycling 1766 | -8/Recycling | Core integrity fell below 50% 2234 | -8/Recycling | Build established: Scavenger-Mutant 2608 | -8/Recycling | Lost 7 allies 2648 | -8/Recycling | Discovered new exit (range 15) 2701 | -8/Recycling | Entered Factory 2701 | -6/Factory | Accompanied by 9 allies 2701 | -6/Factory | Evolved 8 slots: Power x1, Propulsion x2, Utility x3, Weapon x2 2717 | -6/Factory | Attached Arachnoskeleton, gained temporary slots: Propulsion x3 2976 | -6/Factory | Discovered new exit (range 16) 3043 | -6/Factory | Lost 4 allies 3062 | -6/Factory | Lost 4 parts (1p1n2u) 3094 | -6/Factory | Entered Lower Caves 3094 | -6/Lower Caves | Accompanied by 1 ally 3095 | -6/Lower Caves | Encountered a Warlord checkpoint 3336 | -6/Lower Caves | Build established: Scavenger-Gladiator 3346 | -6/Lower Caves | Discovered new exit (range 9) 3353 | -6/Lower Caves | Entered another Lower Caves area 3390 | -6/Lower Caves | Discovered new exit (range 7) 3406 | -6/Lower Caves | Learned location of Extension (-5) 3417 | -6/Lower Caves | Entered Factory 3417 | -5/Factory | Evolved 2 slots: Utility x2 3748 | -5/Factory | Discovered new exit (range 18) 3822 | -5/Factory | Entered Upper Caves 3968 | -5/Upper Caves | Spotted B-75 Beast 4131 | -5/Upper Caves | Discovered new exit (range 9) 4138 | -5/Upper Caves | Entered another Upper Caves area 4139 | -5/Upper Caves | Learned Factory garrison access intel 4422 | -5/Upper Caves | Discovered new exit (range 8) 4444 | -5/Upper Caves | Entered Factory 4444 | -4/Factory | Evolved 2 slots: Utility x2 4445 | -4/Factory | Loaded intel: 4 garrison access locations 4594 | -4/Factory | Build established: Gladiator 4621 | -4/Factory | Spotted B-86 Titan 4784 | -4/Factory | Discovered new exit (range 20) 4812 | -4/Factory | Entered Research 4812 | -3/Research | Evolved 2 slots: Propulsion x1, Utility x1 4914 | -3/Research | Lost 4 parts (1p1n2w) 5062 | -3/Research | First assault squad dispatched 5069 | -3/Research | Discovered new exit (range 8) 5118 | -3/Research | Lost 3 parts (1p1n1w) 5299 | -3/Research | System corruption reached 10% 5316 | -3/Research | System corruption reached 30% 5354 | -3/Research | Lost 9 parts (1p2n6u) 5412 | -3/Research | Found Prototype Launcher 5412 | -3/Research | Identified Hellfire Missile Launcher 5417 | -3/Research | Found Hellfire Missile Launcher 5420 | -3/Research | Found Faulty Hellfire Missile Launcher 5423 | -3/Research | Found Hellfire Missile Launcher 5426 | -3/Research | Found Hellfire Missile Launcher 5465 | -3/Research | Build established: Scavenger-Tank 5511 | -3/Research | Lost 4 parts (3u1w) 5574 | -3/Research | Lost 4 parts (1p1n1u1w) 5717 | -3/Research | Entered Armory 5930 | -3/Armory | Lost 3 parts (1p1n1w) 5944 | -3/Armory | Spotted B-86 Titan 6028 | -3/Armory | Lost 7 parts (1p3n2u1w) 6439 | -3/Armory | Discovered new exit (range 8) 6457 | -3/Armory | Entered Research 6457 | -2/Research | Evolved 2 slots: Propulsion x2 6922 | -2/Research | Build established: Scavenger-Skirmisher 6984 | -2/Research | Lost 3 parts (1n1u1w) 7024 | -2/Research | Found Prototype Launcher 7024 | -2/Research | Identified Adv. Micro-nuke Launcher 7246 | -2/Research | Identified exit to Garrison 7539 | -2/Research | Lost 9 parts (1p3n2u3w) 7737 | -2/Research | First assault squad dispatched 7757 | -2/Research | System corruption reached 10% 7826 | -2/Research | Lost 6 parts (1p2n1u2w) 7827 | -2/Research | Destroyed 10 combat bots 7958 | -2/Research | Spotted B-90 Cyclops 8224 | -2/Research | High security lockdown imminent 8304 | -2/Research | High security lockdown engaged 8462 | -2/Research | Spotted Investigator 8463 | -2/Research | Spotted Executioner 8467 | -2/Research | Scanned by Researcher 8477 | -2/Research | Destroyed Investigator 8490 | -2/Research | Released all parts (5) 8508 | -2/Research | Destroyed 17 combat bots 8511 | -2/Research | Core integrity fell below 50% 8521 | -2/Research | Core integrity fell below 20% 8521 | -2/Research | Spotted Striker 8527 | -2/Research | Lost 20 parts (2p7n4u7w) 8540 | -2/Research | Discovered new exit (range 14) 8540 | -2/Research | Destroyed by G-73 Enforcer with Heavy Laser Last Messages --------------- 08517_ Stasis bubble strength at 10. 08518_ Stasis bubble strength at 4. 08519_ Penetrated by Slug. 08519_ Slug penetrates G-73 Enforcer. 08519_ G-73 Enforcer destroyed. 08519_ Stasis bubble bursts. 08519_ Slammed into G-73 Enforcer. 08520_ C-30 ARC bursts open, deploying its payload. 08520_ H-88 Terminator unfolds itself. 08520_ Striker unfolds itself. 08520_ E-15 Imp unfolds itself. 08522_ The unstable cave ceiling collapses. 08522_ Sml. Matter Pod crushed. 08523_ Slug penetrates Earth. 08523_ Penetrated by Slug. 08535_ G7AXPN PX>TC VYUFUV5 08537_ G-73 Enforcer suffers critical hit (Destroy). 08540_ EXIT=FOUND Map ----- +----------------------------------------------------+ | ### ?"??? ??????????????????????????? | | """ ##?????"????????????????????????????? | | """ ##? ????????????????????????????????? | | """ ##?? ? ???????????????????????????? | | ### ???????????????????????????????? | | ######?###+#+##?????????????????????? | | ####??????????????????? | | # ???????????????????? | | / ????????????????????? | | """ #?????????????????????? | | #######+### """ #?????????????????????? | | ## # """ #?????? ?"????????????? | | ## ?? ?# #?????? ?????????????? | | #??? "?? ?# #????? ????????????? | | #? ?"??? + #????? ""????????????? | | #?? ?"?? # #????? "?????????????? | | ## ?"" ?# ### #????" ?????????????? | | #??? ?????#### #?#K #???? ??????????????? | | ##? ???? ??## #?# #???? ???????????????? | | ??? ??? ??## #?# #####/####+#+##???????? | | ???#?########"+#?# e g s #???????? | | ###### #?# g s #???????? | | #?#?## #?# g s s +???????? | | ###### #?# g s #???????? | | ###### #?####+##; ###+###????????? | | # #???? #@ #??????????????? | | # """#???? # #??????????????? | | + """# ? # #??????????????? | | # """# # #??????????????? | | #### # # # #??????????????? | | #### # # # #??????????????? | | ###" + """# # #??????????????? | | ## # # """# # #??????????????? | | #### # """# # #??????????????? | | +% # ########## #??????????????? | | ## ###???#??? #??????????????? | | # # ##?##??#?? #??????????????? | | # # ##########????????? Y #??????????????? | | # ##?#??#?#?????#???? Y